Cogmind - Beta 16 @@@ ROGUE MODE // 2025.11.24 @ 10:34:00 Player: puppuppit Result: Destroyed by Enhanced Grunt with Neutron Cannon Performance ------------- Evolutions (3) 1500 Regions Visited (12) 2400 Robots Destroyed (232) 1160 Value Destroyed (7268) 7268 Prototype IDs (13) 260 Alien Tech Used (0) 0 Bonus (4265) 4265 TOTAL SCORE: 16853 Bonus ------- Triggered High Security 500 High Alert Combat Kills 1907 Follower Combat Kills 1195 Entered Garrisons 200 Met Data Miner 300 Acquired ECA 300 Friendly Fire -137 Cogmind --------- Core Integrity 0/700 Matter 194/300 Energy 10/100 System Corruption 9% Temperature Cool (0) Movement Core (50) Location -7/Data Miner Parts ------- > --- POWER (1) -------- (None) > --- PROPULSION (5) --- (None) > --- UTILITY (4) ------ Improved Cooling System Improved Signal Interpreter > --- WEAPON (3) ------- (None) > --- INVENTORY (5) ---- Encrypted Comm Array Advanced Assault Cannon Advanced Assault Cannon Gauss Cannon Bore Cannon Peak State ------------ > --- POWER ------------ Micro Nuclear Core > --- PROPULSION ------- Medium Treads Armored Medium Treads Improved Hover Unit Gravmag System Gravmag System > --- UTILITY ---------- High-capacity Storage Unit Hacking Suite Hacking Suite Authchip [R/Combat] > --- WEAPON ----------- Advanced Assault Cannon Advanced Assault Cannon Gauss Cannon > --- INVENTORY -------- Light Treads Light Treads Hover Unit Improved Hover Unit Improved Hover Unit Gravmag System High-capacity Matter Pod Improved Sensor Array Improved Signal Interpreter Medium Reactive Plating Authchip [R/Combat] Dynamic Insulation System High-powered Tractor Beam Advanced Assault Cannon Advanced Assault Cannon Advanced Assault Cannon Bore Cannon Bore Cannon Shock Bomb Launcher Heavy Rocket Launcher [Rating: 53] Favorites ----------- Power Ion Engine Engine Ion Engine Power Core Nuclear Core Propulsion Light Treads Treads Light Treads Hover Unit Improved Hover Unit Flight Unit Flight Unit Utility High-capacity Storage Unit Device Improved Cooling System Storage High-capacity Storage Unit Processor Improved Signal Interpreter Hackware Hacking Suite Protection Hardened Medium Armor Plating Weapon Light Cannon Energy Gun Backup Laser III Energy Cannon Plasma Cannon Ballistic Gun Light Assault Rifle Ballistic Cannon Light Cannon Launcher Grenade Launcher Build | -11 -10 -10 -10 -9 -8 -8 -7 -7 -7 -7 -7 -7 ------- Run | Yrd Mat Min Exi Min Mat Gar Fac Was Fac Low Low Dat Slots Evolved 6 | . . . . . 4 . 2 . . . . . Power . | . . . . . . . . . . . . . Propulsion 3 | . . . . . 1 . 2 . . . . . Utility 2 | . . . . . 2 . . . . . . . Weapon 1 | . . . . . 1 . . . . . . . Parts Attached 125 | 8 9 6 . . 35 18 2 11 30 1 . 5 Power 12 | 2 . 1 . . 3 2 . 1 3 . . . Engine 7 | 2 . 1 . . 1 2 . . 1 . . . Core 5 | . . . . . 2 . . 1 2 . . . Reactor . | . . . . . . . . . . . . . Propulsion 44 | 2 2 . . . 12 6 1 3 13 . . 5 Treads 24 | 2 2 . . . 10 6 1 2 1 . . . Leg . | . . . . . . . . . . . . . Wheel . | . . . . . . . . . . . . . Hover 18 | . . . . . . . . 1 12 . . 5 Flight 2 | . . . . . 2 . . . . . . . Utility 31 | 1 4 3 . . 8 4 . 2 8 1 . . Device 9 | . 2 . . . 2 2 . . 2 1 . . Storage 3 | 1 1 1 . . . . . . . . . . Processor 3 | . . . . . . 1 . . 2 . . . Hackware 6 | . . . . . 3 . . . 3 . . . Protection 10 | . 1 2 . . 3 1 . 2 1 . . . Artifact . | . . . . . . . . . . . . . Weapon 38 | 3 3 2 . . 12 6 1 5 6 . . . Energy Gun 2 | 2 . . . . . . . . . . . . Energy Cannon 1 | . . . . . . . . . 1 . . . Ballistic Gun 5 | 1 1 . . . . . . 3 . . . . Ballistic Cannon 22 | . 1 1 . . 9 6 . 1 4 . . . Launcher 8 | . 1 1 . . 3 . 1 1 1 . . . Special Weapon . | . . . . . . . . . . . . . Impact Weapon . | . . . . . . . . . . . . . Slashing Weapon . | . . . . . . . . . . . . . Piercing Weapon . | . . . . . . . . . . . . . Special Melee Weapon . | . . . . . . . . . . . . . Unidentified Prototypes . | . . . . . . . . . . . . . Corrupted Parts 1 | . . . . . . . . . . . . 1 System Corruption 2 | . . . . . . . . . . . . 2 Parts Lost 53 | . 3 2 . . 15 10 . 8 3 . . 12 Power 3 | . . . . . 1 1 . . 1 . . . Propulsion 26 | . 2 . . . 5 3 . 3 2 . . 11 Utility 10 | . 1 1 . . 2 4 . 1 . . . 1 Weapon 14 | . . 1 . . 7 2 . 4 . . . . Highest Loss Streak 12 | . 2 1 . . 5 4 . 8 1 . . 12 To Critical Strikes 1 | . . . . . . 1 . . . . . . Average Backups 17 | . 15 19 17 17 17 19 19 14 19 20 20 19 Power 1 | . 1 1 1 2 1 . . . . 1 1 1 Propulsion 3 | . 1 2 4 4 3 4 1 . 3 8 8 6 Utility 6 | . 9 11 8 8 4 5 6 5 6 3 3 3 Weapon 6 | . 3 3 3 3 7 7 11 8 7 7 7 7 Tool/Special . | . . . . . . . . . . . . . Unused Backups 44 | . . 7 2 . 5 9 2 5 6 1 . 7 Power 3 | . . . . . 1 1 . . 1 . . . Propulsion 1 | . . . . . . 1 . . . . . . Utility 26 | . . 7 2 . 3 2 2 3 4 1 . 2 Weapon 12 | . . . . . 1 4 . 2 1 . . 4 Tool/Special 2 | . . . . . . 1 . . . . . 1 Average Slot Usage (%) 95 | . 97 99 77 100 96 99 98 59 96 100 100 78 Engine 7 | . 14 14 14 14 3 5 7 4 1 7 7 4 Core 2 | . . . . . 5 3 . . 5 . . 1 Treads 22 | . 27 28 28 28 26 27 36 17 13 . . . Hover 7 | . . . . . . . . . 22 38 38 38 Device 4 | . 3 3 . . 4 3 7 . 4 15 15 14 Storage 9 | . 14 14 14 14 8 9 7 6 7 7 7 7 Processor 1 | . . . . . . . 7 1 . 7 7 7 Hackware 8 | . . . . . 12 16 7 7 13 . . . Protection 6 | . 8 10 14 14 8 6 . 3 2 . . . Ballistic Gun 4 | . 14 11 . . . . . 8 4 . . . Ballistic Cannon 19 | . 12 15 6 28 25 26 22 3 17 22 22 3 Peak Build Rating 53 | 6 11 11 11 11 28 37 40 41 53 46 46 46 Average Rating 25 | 5 8 10 9 11 22 29 38 24 45 46 46 36 On Entrance 24 | . 6 11 11 11 11 26 36 39 34 46 46 46 Avg Prop Armor Cover (%) 2 | . . . . . . . . . 2 . . . Naked Turns . | . . . . . . . . . . . . . Heaviest Build 76 | 13 52 56 56 56 69 76 70 74 73 72 72 72 Greatest Support 110 | 40 40 40 40 40 60 70 110 110 95 40 40 52 Greatest Overweight (x) 13 | . 2 1 1 1 1 1 . 13 2 1 1 1 Average Overweight (x) . | . . 1 1 1 . . . . . 1 1 . Largest Inventory Capacity 20 | 8 20 20 20 20 20 20 20 20 20 20 20 20 Average Capacity 19 | 7 19 20 20 20 19 20 20 17 20 20 20 19 Most Carried 20 | 1 19 20 20 20 20 20 20 20 20 20 20 20 Average Carried 18 | . 15 19 19 20 18 19 19 15 19 19 20 19 Final Capacity 20 | 8 20 20 20 20 20 20 20 20 20 20 20 5 Final Carried 20 | 1 19 20 20 20 20 20 20 20 20 20 20 5 Class Distribution -------------------- 31% | Mutant 15% | Hacker-Tank 10% | Hacker-Gunner 10% | Scavenger-Gunner 10% | Scavenger-Tank 8% | Scavenger-Skirmisher 8% | Tank Dominant Class ---------------- Mutant | -10/Materials Mutant | -10/Mines Mutant | -10/Exiles Mutant | -9/Mines Scavenger-Tank | -8/Materials Hacker-Tank | -8/Garrison Scavenger-Gunner | -7/Factory Mutant | -7/Waste Scavenger-Gunner | -7/Factory Scavenger-Skirmisher | -7/Lower Caves Scavenger-Skirmisher | -7/Lower Caves Scavenger-Mutant | -7/Data Miner Resources | -11 -10 -10 -10 -9 -8 -8 -7 -7 -7 -7 -7 -7 ----------- Run | Yrd Mat Min Exi Min Mat Gar Fac Was Fac Low Low Dat Matter Collected 10759 | 308 974 363 26 134 3132 1919 416 643 2543 135 166 . Remotely 1499 | . 17 . . . . . . . 1435 . 47 . Salvage Created 6779 | 121 935 54 . 222 2064 695 332 886 1470 . . . Parts 352 | 7 54 4 . 17 113 34 19 6 98 . . . Haulers Intercepted 6 | . 2 . . . 4 . . . . . . . Recyclers Shooed 16 | . 4 . . . 6 . . . 6 . . . Parts Field Recycled . | . . . . . . . . . . . . . Retrieved Matter . | . . . . . . . . . . . . . Parts Self-Destructed 1 | . . . . . . . . . . 1 . . Prevented . | . . . . . . . . . . . . . Parts Restored . | . . . . . . . . . . . . . Kills | -11 -10 -10 -10 -9 -8 -8 -7 -7 -7 -7 -7 -7 ------- Run | Yrd Mat Min Exi Min Mat Gar Fac Was Fac Low Low Dat Combat Hostiles Destroyed 144 | . 15 10 . 6 49 32 7 4 20 1 . . Guns 5 | . 1 2 . . . . . . 2 . . . Cannons 82 | . 8 1 . 4 36 17 3 . 12 1 . . AOE 56 | . 6 7 . 2 13 14 4 4 6 . . . Classes Destroyed 19 | 3 6 1 . . 3 3 1 1 1 . . . Worker 16 | 2 1 2 . 1 7 . . . 3 . . . Builder 20 | . 1 . . . 7 . 1 . 11 . . . Tunneler 4 | 1 1 . . 2 . . . . . . . . Hauler 6 | . 2 . . . 4 . . . . . . . Recycler 30 | 1 5 . . . 9 . 3 . 12 . . . Operator 5 | . 1 . . . 3 . . . 1 . . . Watcher 9 | . 3 . . . 4 . 1 . 1 . . . Swarmer 35 | . 2 3 . 2 7 12 4 . 5 . . . Grunt 57 | . 13 . . 4 33 2 . . 5 . . . Brawler 6 | . . . . . 1 4 . . 1 . . . Duelist 2 | . . . . . . 2 . . . . . . Sentry 18 | . . . . . 8 6 1 . 3 . . . Specialist 1 | . . . . . . 1 . . . . . . Hunter 10 | . . . . . 3 3 . . 3 1 . . Programmer 6 | . . . . . . . 2 . 4 . . . Behemoth 2 | . . . . . . 2 . . . . . . Compactor 4 | . . . . . . . . 4 . . . . Assembled 7 | . . 7 . . . . . . . . . . Surgeon 1 | . . . . . . . . . 1 . . . Best Kill Streak 13 | 2 6 4 . 6 13 4 7 4 10 1 . . Combat Bots Only 5 | . 3 3 . 4 5 4 4 4 3 1 . . Max Kills in Single Turn 7 | 1 3 3 . 2 3 3 6 2 7 1 . . Gunslinging . | . . . . . . . . . . . . . Exploded 4 | . 2 3 . 2 3 3 4 2 2 . . . Melee . | . . . . . . . . . . . . . Uniques/NPCs Destroyed . | . . . . . . . . . . . . . Combat | -11 -10 -10 -10 -9 -8 -8 -7 -7 -7 -7 -7 -7 -------- Run | Yrd Mat Min Exi Min Mat Gar Fac Was Fac Low Low Dat Hostile Shots Fired 615 | . 76 21 . 6 237 154 19 5 68 8 . 21 Missed 183 | . 23 5 . 4 65 54 6 . 19 3 . 4 Hits 432 | . 53 16 . 2 172 100 13 5 49 5 . 17 Melee 15 | . . 5 . . . 5 . 5 . . . . Projectile 417 | . 53 11 . 2 172 95 13 . 49 5 . 17 Critical Strikes 19 | . . . . . 8 8 . 3 . . . . Damage Taken 8213 | . 628 276 . 19 2837 2063 348 376 716 112 . 838 Core 1339 | . 78 89 . . 205 232 11 163 137 . . 424 Absorbed by Shields 160 | . . . . . 72 88 . . . . . . Redirected to Shielding 50 | . . . . . 50 . . . . . . . Regen/Repaired (Parts) 709 | . 153 . . . 122 . . 294 140 . . . Core Remaining (%) 51 | 100 . . . 33 . 20 . . . . . . Volleys Fired 515 | 28 89 25 . 11 151 83 7 22 87 11 1 . Largest 3 | 2 2 2 . 2 3 3 3 3 3 3 1 . Hottest 160 | 70 70 50 . 60 110 120 120 126 160 120 40 . Shots Fired 1215 | 55 175 38 . 22 418 197 19 46 223 21 1 . Gun 175 | 55 83 13 . . 8 . . 1 15 . . . Cannon 944 | . 84 12 . 21 391 180 18 24 193 20 1 . Launcher 96 | . 8 13 . 1 19 17 1 21 15 1 . . Special . | . . . . . . . . . . . . . Kinetic 1085 | 28 165 25 . 21 399 180 18 25 203 20 1 . Thermal 34 | 27 2 . . . . . . . 5 . . . Explosive 86 | . 8 13 . 1 19 10 1 21 12 1 . . Electromagnetic 10 | . . . . . . 7 . . 3 . . . Robot Hit Streak 16 | 6 6 6 . 7 16 13 8 14 6 5 . . Robot Miss Streak 10 | 5 4 4 . 5 10 6 2 3 7 2 . . Penetration Max . | . . . . . . . . . . . . . Secondary Targets 1 | . . . . . . . . . 1 . . . Max Gunslinging Chain 1 | . . . . . . . . . 1 . . . Shots Hit Robots 668 | 28 101 14 . 8 256 115 12 33 93 8 . . Core Hits 448 | 5 48 19 . 9 207 71 9 9 69 2 . . Critical Kills 1 | . 1 . . . . . . . . . . . Critical Parts Destroyed 1 | . 1 . . . . . . . . . . . Critical Strikes 26 | 2 4 1 . . 8 4 . 1 6 . . . Burn 2 | 2 . . . . . . . . . . . . Destroy 2 | . 2 . . . . . . . . . . . Blast 22 | . 2 1 . . 8 4 . 1 6 . . . Melee Attacks . | . . . . . . . . . . . . . Impact . | . . . . . . . . . . . . . Slashing . | . . . . . . . . . . . . . Piercing . | . . . . . . . . . . . . . Sneak Attacks . | . . . . . . . . . . . . . Combat Hostiles . | . . . . . . . . . . . . . Follow-up Attacks . | . . . . . . . . . . . . . Damage Inflicted 23004 | 314 1811 652 . 255 6775 4016 1121 3709 4071 209 . 71 Guns 990 | 314 409 44 . . 34 . . 25 164 . . . Cannons 12236 | . 922 123 . 170 4659 2769 314 528 2582 169 . . Explosions 9691 | . 478 481 . 85 2082 1247 807 3156 1315 40 . . Melee . | . . . . . . . . . . . . . Ramming 87 | . 2 4 . . . . . . 10 . . 71 Kinetic 12964 | 91 1318 167 . 170 4693 2769 314 553 2720 169 . . Thermal 1076 | 223 13 . . . 276 . 491 . 73 . . . Explosive 8404 | . 478 481 . 85 1806 1084 316 3156 958 40 . . Electromagnetic 473 | . . . . . . 163 . . 310 . . . Impact . | . . . . . . . . . . . . . Slashing . | . . . . . . . . . . . . . Piercing . | . . . . . . . . . . . . . Highest Corruption 9 | . . 1 1 1 2 2 1 1 4 4 4 9 Average Corruption 2 | . . 1 1 1 2 2 1 1 2 4 4 4 Corruption Purged . | . . . . . . . . . . . . . Corruption Blocked . | . . . . . . . . . . . . . Effects 192 | . . 6 3 3 41 37 1 7 49 18 23 4 Message Errors 52 | . . . . 1 10 10 . 5 15 4 5 2 Matter Fused 51 | . . . 1 . 11 12 1 . 9 7 9 1 Heat Flow Errors 22 | . . 3 . 1 7 2 . . 4 2 2 1 Energy Discharges 23 | . . . 1 . 6 5 . 1 8 1 1 . Parts Rejected 1 | . . . . . 1 . . . . . . . Data Loss (minor) 19 | . . 1 1 . 4 1 . . 5 2 5 . Data Loss (major) 10 | . . 1 . . . 4 . . 3 1 1 . Misfires 6 | . . . . 1 1 1 . 1 2 . . . Alerts 6 | . . 1 . . 1 1 . . 2 1 . . Weapon Failures 2 | . . . . . . 1 . . 1 . . . Overload Shots . | . . . . . . . . . . . . . Overflow Damage 877 | . 10 35 . . 48 92 418 97 116 . . 61 Projectiles 96 | . 10 7 . . 19 8 . . 52 . . . Explosions 720 | . . 28 . . 29 84 418 97 64 . . . Melee 61 | . . . . . . . . . . . . 61 Knockbacks 133 | . 7 1 . 1 80 16 3 . 22 2 . 1 Impact 1 | . . . . . . . . . . . . 1 Kinetic 125 | . 7 1 . 1 74 16 3 . 21 2 . . Secondary 7 | . . . . . 6 . . . 1 . . . Self-Inflicted Damage 949 | . 16 22 . . 304 106 221 166 47 32 . 35 Shots 23 | . 1 1 . . 6 3 3 6 2 1 . . Rammed 7 | . 1 1 . . . . . . 4 . . 1 Targets Rammed 7 | . 1 1 . . . . . . 4 . . 1 Kicked . | . . . . . . . . . . . . . Crushed . | . . . . . . . . . . . . . Highest Temperature 462 | 160 124 252 . 227 389 360 . 220 462 156 161 171 Average Temperature 73 | 50 30 70 . 47 81 97 . 106 75 86 90 105 Received Heat Transfer 2116 | . 285 20 . 6 1093 613 . . 99 . . . Effects 5 | . . . . . . 2 . . 3 . . . Shutdowns 1 | . . . . . . . . . 1 . . . Energy Bleed 1 | . . . . . . . . . 1 . . . Interference 2 | . . . . . . 2 . . . . . . Short Circuit 1 | . . . . . . . . . 1 . . . Siege Activations . | . . . . . . . . . . . . . Martial Activations . | . . . . . . . . . . . . . Shielding Activations . | . . . . . . . . . . . . . Robots Disrupted . | . . . . . . . . . . . . . Combat Hostiles . | . . . . . . . . . . . . . Robots Corrupted 1 | . . . . . . 1 . . . . . . Combat Hostiles 1 | . . . . . . 1 . . . . . . Parts Fried . | . . . . . . . . . . . . . Impact Corruptions 1 | . . . . . . . . . . . . 1 Robots Melted . | . . . . . . . . . . . . . Combat Hostiles . | . . . . . . . . . . . . . Parts Melted 2 | 2 . . . . . . . . . . . . Heat Transferred 1342 | 755 37 . . . 150 . 300 . 100 . . . Parts Sabotaged . | . . . . . . . . . . . . . Parts Stolen . | . . . . . . . . . . . . . Parts Stripped . | . . . . . . . . . . . . . Power Chain Reactions . | . . . . . . . . . . . . . Alert | -11 -10 -10 -10 -9 -8 -8 -7 -7 -7 -7 -7 -7 ------- Run | Yrd Mat Min Exi Min Mat Gar Fac Was Fac Low Low Dat Maximum Alert Level 5 | . . . . . 3 5 5 2 5 . . . Low Security (%) 37 | 100 100 100 . 100 24 . . 1 11 . . . Level 1 16 | . . . . . 40 . . 59 19 . . . Level 2 7 | . . . . . 11 2 . 38 11 . . . Level 3 13 | . . . . . 23 20 . . 18 . . . Level 4 9 | . . . . . . 30 93 . 5 . . . Level 5 15 | . . . . . . 45 6 . 32 . . . High Security . | . . . . . . . . . . . . . Max Security . | . . . . . . . . . . . . . Sterilizations 1 | . . . . . 1 . . . . . . . Peak Influence 2697 | 10 196 118 . 122 990 2697 1608 554 2297 . . . Initial 1415 | . . 36 . . 39 636 1415 554 135 . . . Average 689 | 1 110 13 . 42 425 1620 1401 362 984 . . . Influence Increases 8757 | 20 570 161 . 217 1838 2201 391 82 3247 30 . . Destroy 0b10 Robot/C 3380 | . 300 60 . 160 1020 680 140 . 1000 20 . . Destroy 0b10 Robot/NC 550 | 20 70 10 . 15 170 5 25 . 235 . . . Destroy Leader 696 | . 80 10 . 10 266 30 42 . 248 10 . . Allied During Kill 1185 | . . . . 26 16 9 . . 1134 . . . Trap Triggered on 0b10 20 | . . . . . 20 . . . . . . . Successful Hack 198 | . 30 . . . 24 17 10 . 117 . . . Select Force Hacks 60 | . 30 . . . 30 . . . . . . . Disable Machine 510 | . 30 30 . . 75 15 135 . 225 . . . Anti-Garrison Action 1300 | . . . . . . 1300 . . . . . . Destroy Structure 753 | . 30 51 . 6 157 115 39 82 273 . . . Lose Combat Pursuer 105 | . . . . . 60 30 . . 15 . . . Influence Decreases 8757 | 20 476 255 . 114 962 483 1504 1472 1149 1215 561 546 Entered New Map 4442 | . . 58 . . 64 343 1282 1030 59 849 211 546 Time Decay 3503 | 20 456 195 . 114 748 . 222 362 680 356 350 . Lost Part 382 | . 20 2 . . 150 100 . 80 30 . . . Lost Ally 430 | . . . . . . 40 . . 380 10 . . Squads Dispatched 39 | . 5 . . . 13 . 4 . 17 . . . Investigation 8 | . 4 . . . 3 . . . 1 . . . Extermination 5 | . . . . . . . 1 . 4 . . . Reinforcement 17 | . 1 . . . 7 . . . 9 . . . Assault 6 | . . . . . . . 3 . 3 . . . Garrison 3 | . . . . . 3 . . . . . . . Intercept . | . . . . . . . . . . . . . Searches Triggered . | . . . . . . . . . . . . . Construction Impeded 10 | . . . . . 4 . . . 6 . . . Haulers Reinforced 2 | . . . . . . . . . 2 . . . Active Scanning Responses . | . . . . . . . . . . . . . Cargo Convoy Interrupts . | . . . . . . . . . . . . . Stealth | -11 -10 -10 -10 -9 -8 -8 -7 -7 -7 -7 -7 -7 --------- Run | Yrd Mat Min Exi Min Mat Gar Fac Was Fac Low Low Dat Distress Signals 9 | . 1 . . 1 3 . 1 . 3 . . . Communications Jammed . | . . . . . . . . . . . . . Distress Signals . | . . . . . . . . . . . . . Times Spotted 215 | . 21 15 . 8 64 35 9 6 52 1 . 4 Peak Tracking Total 6 | . 3 4 . 4 5 5 4 3 6 1 . 4 Tactical Retreats 9 | . . 2 . . 4 2 . . 1 . . . Traps | -11 -10 -10 -10 -9 -8 -8 -7 -7 -7 -7 -7 -7 ------- Run | Yrd Mat Min Exi Min Mat Gar Fac Was Fac Low Low Dat Traps Triggered 20 | . 3 . . . 1 14 1 . 1 . . . Indirectly . | . . . . . . . . . . . . . Trap Hack Attempts . | . . . . . . . . . . . . . Triggered . | . . . . . . . . . . . . . Disarmed . | . . . . . . . . . . . . . Reprogrammed . | . . . . . . . . . . . . . Reused 2 | . . . . . 2 . . . . . . . Traps Extracted . | . . . . . . . . . . . . . Installed 4 | . . 1 . . 3 . . . . . . . Triggered 2 | . . . . . 2 . . . . . . . Most Traps Carried 3 | . . 3 3 3 3 . . . . . . . Machines | -11 -10 -10 -10 -9 -8 -8 -7 -7 -7 -7 -7 -7 ---------- Run | Yrd Mat Min Exi Min Mat Gar Fac Was Fac Low Low Dat Machines Disabled 43 | . 4 2 . . 5 6 9 . 15 1 . 1 Max in Single Turn 9 | . 2 2 . . 2 1 9 . 6 1 . 1 Garrison Access 2 | . . . . . . . 1 . 1 . . . Garrison Relay 5 | . . . . . . 5 . . . . . . Machines Repaired . | . . . . . . . . . . . . . Machines Dismantled . | . . . . . . . . . . . . . Machines Sabotaged . | . . . . . . . . . . . . . Overloaded Fab Kills . | . . . . . . . . . . . . . Hacking | -11 -10 -10 -10 -9 -8 -8 -7 -7 -7 -7 -7 -7 --------- Run | Yrd Mat Min Exi Min Mat Gar Fac Was Fac Low Low Dat Machines Accessed 44 | . 10 . 1 . 10 3 4 . 12 . . 4 Terminals 22 | . 7 . . . 6 3 1 . 5 . . . Fabricators 3 | . . . . . . . 1 . 2 . . . Repair Stations 3 | . 1 . . . 1 . . . 1 . . . Recycling Units 6 | . 2 . . . 1 . 1 . 2 . . . Scanalyzers 2 | . . . . . 1 . . . 1 . . . Garrison Access 3 | . . . . . 1 . 1 . 1 . . . Total Hacks 164 | . 31 . 1 . 32 6 12 . 54 . . 28 Successful 119 | . 17 . 1 . 26 2 6 . 39 . . 28 Failed 44 | . 14 . . . 6 4 6 . 14 . . . Catastrophic 5 | . 1 . . . . . 1 . 3 . . . Database Lockouts 1 | . . . . . . . . . 1 . . . Manual 80 | . 25 . . . 21 1 10 . 23 . . . Terminals 66 | . 21 . . . 16 6 4 . 19 . . . Fabricators 16 | . . . . . . . 6 . 10 . . . Repair Stations 12 | . 6 . . . 4 . . . 2 . . . Recycling Units 11 | . 4 . . . 2 . 1 . 4 . . . Scanalyzers 26 | . . . . . 8 . . . 18 . . . Garrison Access 4 | . . . . . 2 . 1 . 1 . . . Terminal Hacks 39 | . 1 . 1 . 2 2 1 . 4 . . 28 Record 12 | . . . 1 . . . . . . . . 11 Part Schematic 10 | . . . . . . . . . . . . 10 Robot Schematic 5 | . . . . . . . 1 . . . . 4 Robot Analysis 5 | . . . . . 2 . . . 3 . . . Prototype ID Bank 4 | . 1 . . . . . . . . . . 3 Open Door 1 | . . . . . . 1 . . . . . . Branch Access Points 1 | . . . . . . . . . 1 . . . Security Stations 1 | . . . . . . 1 . . . . . . Fabricator Hacks 6 | . . . . . . . . . 6 . . . Network Status 1 | . . . . . . . . . 1 . . . Load Schematic 3 | . . . . . . . . . 3 . . . Build 2 | . . . . . . . . . 2 . . . Repair Station Hacks 7 | . 4 . . . 2 . . . 1 . . . Scan Component 4 | . 2 . . . 1 . . . 1 . . . Repair 3 | . 2 . . . 1 . . . . . . . Recycling Unit Hacks . | . . . . . . . . . . . . . Scanalyzer 24 | . . . . . 7 . . . 17 . . . Insert Component 10 | . . . . . 3 . . . 7 . . . Analyze 11 | . . . . . 3 . . . 8 . . . Retrieve Study 3 | . . . . . 1 . . . 2 . . . Garrison Access Hacks 3 | . . . . . 1 . 1 . 1 . . . Unlock Access 1 | . . . . . 1 . . . . . . . Seal Access 2 | . . . . . . . 1 . 1 . . . Unauthorized Hacks 40 | . 12 . . . 14 . 4 . 10 . . . Terminals 28 | . 10 . . . 10 . 2 . 6 . . . Botnet 11 | . 4 . . . 3 . 1 . 3 . . . Operators 3 | . 1 . . . 1 . . . 1 . . . Skim 14 | . 5 . . . 6 . 1 . 2 . . . Fabricators 3 | . . . . . . . 2 . 1 . . . Report 1 | . . . . . . . 1 . . . . . Liberate 1 | . . . . . . . . . 1 . . . Haulers 1 | . . . . . . . 1 . . . . . Repair Stations 2 | . 1 . . . 1 . . . . . . . Mechanics 1 | . 1 . . . . . . . . . . . Patch 1 | . . . . . 1 . . . . . . . Recycling Units 5 | . 1 . . . 1 . . . 3 . . . Reject 1 | . . . . . 1 . . . . . . . Recyclers 2 | . . . . . . . . . 2 . . . Mask 1 | . . . . . . . . . 1 . . . Tunnel 1 | . 1 . . . . . . . . . . . Scanalyzers 1 | . . . . . 1 . . . . . . . Extract 1 | . . . . . 1 . . . . . . . Garrison Access 1 | . . . . . 1 . . . . . . . Reprogram 1 | . . . . . 1 . . . . . . . Data Cores Recovered 1 | . . . . . 1 . . . . . . . Used . | . . . . . . . . . . . . . Hacking Detections 35 | . 10 . . . 9 2 3 . 11 . . . Full Trace Events 5 | . 3 . . . . 1 . . 1 . . . Feedback Events 1 | . . . . . . . . . 1 . . . Corruption 1 | . . . . . . . . . 1 . . . Feedback Blocked . | . . . . . . . . . . . . . Robot Schematics Acquired 5 | . . . . . . . 1 . . . . 4 Robots Built 8 | . . . . . . . . . 8 . . . Authchips 2 | . . . . . . . . . 2 . . . Time 88 | . . . . . . . . . 88 . . . Total Robot Build Rating 32 | . . . . . . . . . 32 . . . Part Schematics Acquired 21 | . . . . . 4 . . . 7 . . 10 Parts Built . | . . . . . . . . . . . . . Authchips . | . . . . . . . . . . . . . Time . | . . . . . . . . . . . . . Total Part Build Rating . | . . . . . . . . . . . . . Part Studies Acquired 3 | . . . . . 1 . . . 2 . . . Parts Repaired 3 | . 2 . . . 1 . . . . . . . Time 78 | . 52 . . . 26 . . . . . . . Parts Recycled . | . . . . . . . . . . . . . Recycled Matter . | . . . . . . . . . . . . . Retrieved Matter . | . . . . . . . . . . . . . Retrieved Components . | . . . . . . . . . . . . . Parts Scanalyzed 10 | . . . . . 3 . . . 7 . . . Part Schematics Acquired 10 | . . . . . 3 . . . 7 . . . Parts Damaged 2 | . . . . . 1 . . . 1 . . . Bothacking | -11 -10 -10 -10 -9 -8 -8 -7 -7 -7 -7 -7 -7 ------------ Run | Yrd Mat Min Exi Min Mat Gar Fac Was Fac Low Low Dat Used RIF Installer . | . . . . . . . . . . . . . Robots Hacked . | . . . . . . . . . . . . . Non-combat . | . . . . . . . . . . . . . Combat . | . . . . . . . . . . . . . Robot Hacks Applied . | . . . . . . . . . . . . . Relay Couplers Released 22 | . . . . . . 20 2 . . . . . Machine Destruction 22 | . . . . . . 20 2 . . . . . Fabnet Peak Effective % . | . . . . . . . . . . . . . Robots Rewired . | . . . . . . . . . . . . . Allies Hacked 4 | . . . . . . . . . 4 . . . Hacks Repelled . | . . . . . . . . . . . . . Allies | -11 -10 -10 -10 -9 -8 -8 -7 -7 -7 -7 -7 -7 -------- Run | Yrd Mat Min Exi Min Mat Gar Fac Was Fac Low Low Dat Total Allies 33 | . . 4 . . . 2 . 19 8 . . . Largest Group 19 | . . 3 3 3 3 2 . 19 19 1 . . Highest-Rated Group 465 | . . 40 40 40 40 70 . 465 464 27 . . Highest-Rated Ally 39 | . . 31 16 16 16 39 . 35 35 27 . . Initial Warlord ECA Mod 8 | . . . . . . . 8 8 8 8 8 8 Total Orders . | . . . . . . . . . . . . . Ally Attacks 391 | . . 17 . 3 27 24 . 57 263 . . . Total Damage 7068 | . . 211 . 23 243 328 . 1137 5126 . . . Kills 67 | . . 6 . 2 2 2 . 2 53 . . . Allies Corrupted 1 | . . . . . . . . . 1 . . . Allies Melted . | . . . . . . . . . . . . . Intel | -11 -10 -10 -10 -9 -8 -8 -7 -7 -7 -7 -7 -7 ------- Run | Yrd Mat Min Exi Min Mat Gar Fac Was Fac Low Low Dat Active Infowar (turns) 2803 | . 508 336 . . 244 . . . . 795 793 127 Sensors 1715 | . . . . . . . . . . 795 793 127 Terrain 1088 | . 508 336 . . 244 . . . . . . . Robot Analysis Total 5 | . . . . . 2 . . . 3 . . . Derelict Logs Recovered 6 | . . 2 . . . . . . . 2 2 . Drone Launches . | . . . . . . . . . . . . . Drone Recoveries . | . . . . . . . . . . . . . Exploration | -11 -10 -10 -10 -9 -8 -8 -7 -7 -7 -7 -7 -7 ------------- Run | Yrd Mat Min Exi Min Mat Gar Fac Was Fac Low Low Dat Turns Passed 18343 | 197 2508 1491 725 441 3945 3297 462 835 2705 803 797 137 Spaces Moved 8955 | 70 899 578 298 170 1533 1255 263 448 1806 734 761 140 Core 156 | 3 . . . . 2 . . 150 . . . 1 Treads 5952 | 67 899 578 298 170 1404 1255 263 294 724 . . . Legs . | . . . . . . . . . . . . . Wheels . | . . . . . . . . . . . . . Hover 2720 | . . . . . . . . 4 1082 734 761 139 Flight 127 | . . . . . 127 . . . . . . . Fastest Speed 37 | 50 160 240 240 240 37 160 160 50 104 104 104 44 Average Speed 178 | 155 238 240 240 240 212 231 160 157 127 104 104 78 Slowest Speed 700 | 160 320 240 240 240 240 240 160 700 168 104 104 112 Overloaded Moves . | . . . . . . . . . . . . . Propulsion Burnouts . | . . . . . . . . . . . . . Robots Hopped 6 | . . . . . 6 . . . . . . . Potential Cave-ins . | . . . . . . . . . . . . . Cave-ins Triggered . | . . . . . . . . . . . . . Exploration Rate (%) 64 | 7 98 89 57 36 74 90 10 96 46 80 82 78 Regions Visited 12 Branch Regions 6 Pre-discovered Areas 5 | . 2 . 1 . . . . . . 1 . 1 Known Exits Taken 6 | . . 1 1 . 1 . . . 1 1 1 . Unknown Exits Taken 3 | 1 1 . . 1 . . . . . . . . Scrap Searched 2 | . . . . 1 . . . . . 1 . . Spaces Dug 124 | . 5 20 . . 22 21 . 1 52 3 . . Terrain Destroyed 763 | . 33 93 . 6 184 79 37 106 194 30 1 . Melee . | . . . . . . . . . . . . . Projectile 57 | . . 1 . . . . 5 2 42 6 1 . AOE 706 | . 33 92 . 6 184 79 32 104 152 24 . . Terrain Rammed . | . . . . . . . . . . . . . Walls Destroyed . | . . . . . . . . . . . . . Machines Disabled . | . . . . . . . . . . . . . Actions | -11 -10 -10 -10 -9 -8 -8 -7 -7 -7 -7 -7 -7 --------- Run | Yrd Mat Min Exi Min Mat Gar Fac Was Fac Low Low Dat Total 10294 | 105 1093 647 311 182 1901 1505 292 532 2037 754 764 171 Wait 217 | . 55 1 . . 69 46 12 21 9 4 . . Move 8932 | 69 898 577 297 169 1520 1254 263 447 1805 733 760 140 Hop 6 | . . . . . 6 . . . . . . . Pick Up 180 | . 22 13 3 . 48 32 4 12 39 1 . 6 Fast Attach 48 | 6 7 1 4 . 9 4 . 11 6 . . . Attach 69 | . 5 2 . . 27 11 2 5 11 . . 6 Detach 16 | . 3 1 . . 6 . . 3 2 . . 1 Swap 141 | 2 11 12 . 2 30 24 2 4 40 4 3 7 Drop 137 | . 2 13 7 . 32 29 2 7 34 1 . 10 Fire 515 | 28 89 25 . 11 151 83 7 22 87 11 1 . Melee . | . . . . . . . . . . . . . Ram 1 | . . . . . . . . . . . . 1 Kick . | . . . . . . . . . . . . . Crush 6 | . 1 1 . . . . . . 4 . . . Escape Stasis 22 | . . . . . . 22 . . . . . . Rewire . | . . . . . . . . . . . . . Trap 4 | . . 1 . . 3 . . . . . . . Miscellaneous . | . . . . . . . . . . . . . Route ------- -11/Scrapyard -10/Materials (discovered 5 exits: *Mat x3 / [*Min] / [*Sub]) -10/Mines (discovered 3 exits: *Mat x2 / *Exi) -10/Exiles (discovered 2 exits: *Min x2) -9/Mines -8/Materials (discovered 4 exits: *Fac x3 / Gar) -8/Garrison (discovered 3 exits: *Fac x3) -7/Factory (discovered 5 exits: Fac x2 / *Sto / Low x2) -7/Waste -7/Factory (discovered 6 exits: *Fac x2 / Sto x2 / *Low x2) -7/Lower Caves -7/Lower Caves (discovered 2 exits: *Fac / *Dat) -7/Data Miner (discovered 1 exit: *Pro) History --------- Turn | Location | Event 58 | -11/Scrapyard | Discovered new exit (range 15) 198 | -11/Scrapyard | Entered Materials 303 | -10/Materials | Build established: Mutant 465 | -10/Materials | Discovered new exit (range 10) 795 | -10/Materials | Discovered new exit (range 13) 891 | -10/Materials | Discovered new exit (range 8) 1036 | -10/Materials | Discovered new exit (range 8) 2010 | -10/Materials | Discovered new exit (range 5) 2486 | -10/Materials | Learned 2 Mines zone layouts 2583 | -10/Materials | Learned location of 3 exits from Materials 2597 | -10/Materials | Learned Storage emergency access door positions 2603 | -10/Materials | Repaired Lgt. Assault Rifle 2620 | -10/Materials | Identified exit to Materials 2630 | -10/Materials | Repaired Lgt. Cannon 2706 | -10/Materials | Entered Mines 2710 | -10/Mines | Met a Derelict bent on vengeance 2788 | -10/Mines | Discovered exit to Materials (range 3) 2904 | -10/Mines | Assembled infested the area 3174 | -10/Mines | Core integrity fell below 50% 3272 | -10/Mines | Received a Mining Laser from a helpful Derelict 3480 | -10/Mines | Learned Materials emergency access door positions 3614 | -10/Mines | Joined a pair of Derelicts in attacking an 0b10 outpost 3874 | -10/Mines | Deemed a non-threat by the Exiles lab entrance 3927 | -10/Mines | Identified exit to Exiles 3989 | -10/Mines | Assisted by bots powering up and referring to "LRC-V3" 4073 | -10/Mines | Found a hidden stash of uninstalled traps 4197 | -10/Mines | Entered Exiles 4197 | -10/Exiles | Accompanied by 3 allies 4198 | -10/Exiles | Identified exit to Mines 4265 | -10/Exiles | Met 8R-AWN 4390 | -10/Exiles | Met EX-HEX 4525 | -10/Exiles | Met EX-DEC 4563 | -10/Exiles | Learned location of Zion (-6) 4765 | -10/Exiles | Met EX-BIN 4922 | -10/Exiles | Entered Mines 4922 | -9/Mines | Accompanied by 3 allies 5139 | -9/Mines | Discovered new exit (range 5) 5263 | -9/Mines | Excavation squad dispatched 5263 | -9/Mines | A large section of the Mines collapsed 5363 | -9/Mines | Entered Materials 5363 | -8/Materials | Accompanied by 3 allies 5363 | -8/Materials | Evolved 4 slots: Propulsion x1, Utility x2, Weapon x1 5364 | -8/Materials | Identified exit to Factory 5702 | -8/Materials | Build established: Scavenger-Tank 6933 | -8/Materials | Lost 3 parts (1u2w) 7022 | -8/Materials | Repaired Lgt. Cannon 7586 | -8/Materials | Build established: Hacker-Tank 7752 | -8/Materials | Learned 2 Lower Caves zone layouts 7803 | -8/Materials | Learned location of 1 exit from Recycling 7905 | -8/Materials | Learned location of 2 exits from Factory 7940 | -8/Materials | Learned 4 Recycling zone layouts 8041 | -8/Materials | Learned Factory security intel 8203 | -8/Materials | Build established: Hacker-Gunner 8336 | -8/Materials | Garrison activated, responded to threat 8392 | -8/Materials | Lost 5 parts (1p1n3w) 9045 | -8/Materials | Sterilization system engaged 9045 | -8/Materials | Non-combat units ordered to evacuate 9080 | -8/Materials | Identified exit to Garrison 9145 | -8/Materials | Combat units ordered to evacuate 9308 | -8/Materials | Entered Garrison 9386 | -8/Garrison | Triggered checkpoint 9450 | -8/Garrison | Garrison Relay disabled 9729 | -8/Garrison | Rescued a captive Derelict 9730 | -8/Garrison | Rescued a captive Derelict 9811 | -8/Garrison | Triggered checkpoint 9836 | -8/Garrison | Triggered checkpoint 9846 | -8/Garrison | Triggered checkpoint 10024 | -8/Garrison | Discovered exit to Factory (range 14) 10060 | -8/Garrison | Triggered checkpoint 10098 | -8/Garrison | Garrison Relay disabled 10107 | -8/Garrison | Build established: Hacker-Tank 10356 | -8/Garrison | Learned Factory security intel 10437 | -8/Garrison | Spotted B-75 Beast 10589 | -8/Garrison | Discovered exit to Factory (range 15) 10704 | -8/Garrison | Spotted B-75 Beast 10738 | -8/Garrison | Triggered checkpoint 10868 | -8/Garrison | Garrison Relay disabled 11086 | -8/Garrison | Triggered checkpoint 11280 | -8/Garrison | Triggered checkpoint 11404 | -8/Garrison | Triggered checkpoint 11415 | -8/Garrison | Garrison Relay disabled 11505 | -8/Garrison | Discovered exit to Factory (range 11) 11654 | -8/Garrison | Triggered checkpoint 11661 | -8/Garrison | Core integrity fell below 50% 11992 | -8/Garrison | Destroyed B-75 Beast 12293 | -8/Garrison | Destroyed B-75 Beast 12313 | -8/Garrison | Lost 4 parts (2n1u1w) 12569 | -8/Garrison | Build established: Gunner 12605 | -8/Garrison | Entered Factory 12605 | -7/Factory | Evolved 2 slots: Propulsion x2 12606 | -7/Factory | Identified exit to Storage 12606 | -7/Factory | Identified exit to Lower Caves 12607 | -7/Factory | Identified exit to Factory 12895 | -7/Factory | Build established: Scavenger-Gunner 13005 | -7/Factory | First assault squad dispatched 13067 | -7/Factory | Sucked down chute 13067 | -7/Factory | Entered Waste 13130 | -7/Waste | Spotted C-40 Crusher 13131 | -7/Waste | Spotted C-40 Crusher 13138 | -7/Waste | Destroyed C-40 Crusher 13147 | -7/Waste | Spotted C-40 Crusher 13148 | -7/Waste | Spotted C-40 Crusher 13154 | -7/Waste | Destroyed C-40 Crusher 13154 | -7/Waste | Destroyed C-40 Crusher 13154 | -7/Waste | Spotted C-40 Crusher 13167 | -7/Waste | Destroyed C-40 Crusher 13177 | -7/Waste | Spotted C-40 Crusher 13178 | -7/Waste | Crushed by Compactor (1 part destroyed, 1 dropped) 13181 | -7/Waste | Crushed by Compactor (1 part destroyed, 1 dropped) 13186 | -7/Waste | Crushed by Compactor (1 part destroyed, 2 dropped) 13189 | -7/Waste | Crushed by Compactor (1 part destroyed, 1 dropped) 13194 | -7/Waste | Crushed by Compactor (1 part destroyed, 1 dropped) 13225 | -7/Waste | Lost 8 parts (3n1u4w) 13264 | -7/Waste | Discovered new exit (range 11) 13269 | -7/Waste | Warlord forces began an assault 13282 | -7/Waste | Allies destroyed C-40 Crusher 13290 | -7/Waste | Allies destroyed C-40 Crusher 13410 | -7/Waste | Found Damper Plating 13475 | -7/Waste | Build established: Mutant 13867 | -7/Waste | Build established: Tank 13902 | -7/Waste | Entered Factory 13902 | -7/Factory | Accompanied by 19 allies 14199 | -7/Factory | Discovered exit to Factory (range 15) 14891 | -7/Factory | Lost 3 allies 15092 | -7/Factory | Build established: Hacker-Gunner 15478 | -7/Factory | Central database locked down 15499 | -7/Factory | Build established: Scavenger-Gunner 15502 | -7/Factory | First assault squad dispatched 15997 | -7/Factory | Discovered exit to Factory (range 8) 16244 | -7/Factory | Fabricated S-27 Virus (x4) 16293 | -7/Factory | Fabricated S-27 Virus (x4) 16416 | -7/Factory | Lost 10 allies 16558 | -7/Factory | P-60 Hacker assimilated allied 8U-QTF(m) 16582 | -7/Factory | High security lockdown imminent 16607 | -7/Factory | Entered Lower Caves 16607 | -7/Lower Caves | Accompanied by 1 ally 16611 | -7/Lower Caves | Learned 8 Factory zone layouts 16613 | -7/Lower Caves | Met a Warlord Commander 16614 | -7/Lower Caves | Learned location of Warlord (-5) 16615 | -7/Lower Caves | Warlord Commander delivered Encrypted Comm Array 16617 | -7/Lower Caves | Found Encrypted Comm Array 16774 | -7/Lower Caves | Spotted B-75 Beast 16924 | -7/Lower Caves | Build established: Scavenger-Skirmisher 17103 | -7/Lower Caves | Discovered new exit (range 12) 17114 | -7/Lower Caves | Identified exit to Lower Caves 17410 | -7/Lower Caves | Entered another Lower Caves area 17418 | -7/Lower Caves | Encountered a Warlord checkpoint 17433 | -7/Lower Caves | Discovered exit to Factory (range 14) 17586 | -7/Lower Caves | Learned Factory stockpile data 18004 | -7/Lower Caves | Discovered new exit (range 7) 18206 | -7/Lower Caves | Identified exit to Data Miner 18207 | -7/Lower Caves | Entered Data Miner 18207 | -7/Data Miner | Discovered new exit (range 6) 18212 | -7/Data Miner | Identified exit to Proximity Caves 18229 | -7/Data Miner | Met Data Miner 18249 | -7/Data Miner | Learned location of Section 7 (-2) 18249 | -7/Data Miner | Acquired the access code to Warlord's prototype stash 18263 | -7/Data Miner | Received God Mode back door access code from Data Miner 18324 | -7/Data Miner | Data Conduit disabled 18329 | -7/Data Miner | Core integrity fell below 50% 18342 | -7/Data Miner | Core integrity fell below 20% 18344 | -7/Data Miner | Destroyed by Enhanced Grunt with Neutron Cannon Last Messages --------------- 18324_ System corrupted by crushing effect (+3). 18324_ Data Miner disappears through a trap door. 18327_ System corrupted: Matter fused (-7). 18331_ Imp. Hover Unit+ destroyed. 18331_ Gravmag System+ destroyed. 18333_ Integrated Corrupted Gravmag System+ (+2). 18333_ Complication: Energy sink damages Corrupted Gravmag System+ (-8). 18333_ Gravmag System+ destroyed. 18334_ Imp. Sensor Array destroyed. 18336_ Gravmag System+ destroyed. 18338_ Cmb. Airjet destroyed. 18340_ Airjet destroyed. 18341_ Imp. Hover Unit+ destroyed. 18341_ Airjet destroyed. 18342_ Dropped Hcp. Storage Unit. 18342_ Gravmag System+ destroyed. 18343_ Dropped Mic. Nuclear Core. 18343_ Acquired Encrypted Comm Array. Map ----- +----------------------------------------------------+ | | | | | | | | | | | | | | | | | | | | | | | | | | | | | | | | | | | ???????????????????????????????????????????? | | ???????????????????????????????????????????? | | ???????????????????????????????????????????? | | ???????????????????????????????????????????? | | ???????????????????????????????####????????? | | #################??#######?#?### #????????? | | """"""""""""""#"#### # #]# ### #????????? | | """"""" """"" ""# # #]#*##==> ##????????? | | """"""" g ]]!@! ] ######???? | | """" g *!] #???? | | """" gg ! #???? | | "" #???? | | """" ##???? | | """" """"""""""""""""#####????? | | """"" """"###############????????? | | """"" """""###??????????????????????? | | """"""" "#####????????????????????????? | | ######"## "#????????????????????????????? | | ?????#"### "#????????????????????????????? | | ?????#"### "#????????????????????????????? | | ?????#"?# "#????????????????????????????? | | ???????## "#????????????????????????????? | | ???????# "#????????????????????????????? | | ???????### "#????????????????????????????? | | ?????????# "##???????????????????????????? | | ????????## ""#???????????????????????????? | | ???????## ""#???????????????????????????? | | ????##"#"X ""#???????????????????????????? | | ????""""" "####????????????????????????? | | ????""""" X"""""????????????????????????? | | ????##"#"X "##"#????????????????????????? | | ?????#?## X""""#????????????????????????? | | ????????## "##"#????????????????????????? | +----------------------------------------------------+ Best States ------------- Heat Dissipation 80 Energy Generation 19 Energy Capacity 315 Matter Stores 300 Matter Capacity 300 Sight Range 16 Robot Scan Range 15 Terrain Scan Range 16 Terrain Scan Density 10 Armor Coverage 225 Propulsion Shielding 33 Evasion (%) 62 Targeting Accuracy 5 Launcher Accuracy 20 Recoil Reduction 5 Offensive Hacking 20 Authchip Count 4 Item Schematics ----------------- Cmb. Airjet | -8/Materials | Scanalyzed Lgt. Fission Core | -8/Materials | Scanalyzed Flak Cannon | -8/Materials | Scanalyzed Imp. Hover Unit | -8/Materials | Extracted Gravmag System | -7/Factory | Scanalyzed Bore Cannon | -7/Factory | Scanalyzed Gauss Cannon | -7/Factory | Scanalyzed Med. Reactive Plating | -7/Factory | Scanalyzed Hpw. Tractor Beam | -7/Factory | Scanalyzed Dynamic Insulation System | -7/Factory | Scanalyzed Imp. Cooling System | -7/Factory | Scanalyzed Combat Drone Bay | -7/Data Miner | Free Lgt. Regenerative Plating | -7/Data Miner | Free Cld. Aerolev Unit | -7/Data Miner | Free Gravity Neutralizer | -7/Data Miner | Free Prc. Rocket Launcher | -7/Data Miner | Free Linear Gravjet | -7/Data Miner | Free Enh. Gauss Cannon | -7/Data Miner | Free Adv. System Shield | -7/Data Miner | Free Imp. Gyrokinetic Inverter | -7/Data Miner | Free Adv. Datajack | -7/Data Miner | Free Robot Schematics ------------------ S-27 Virus | -7/Factory | Hacked P-60 Hacker | -7/Data Miner | Free B-48 Gladiator | -7/Data Miner | Free R-10 Processor | -7/Data Miner | Free H-66 Slayer | -7/Data Miner | Free Fabricated ------------ S-27 Virus | x4 | -7/Factory | Authchip S-27 Virus | x4 | -7/Factory | Authchip Repaired ---------- Lgt. Assault Rifle | 7% | -10/Materials Lgt. Cannon | 34% | -10/Materials Lgt. Cannon | 55% | -8/Materials Studied --------- Flak Cannon | -8/Materials | Hacked Gravmag System | -7/Factory | Hacked Imp. Hover Unit | -7/Factory | Hacked Alien Tech Used ----------------- None Achievements -------------- None Challenges ------------ None Game ------ Seed DroneGodFirepult Manual? 0 Play Time 01:48:56 Cumulative 636.3 hours Start 2025.11.24 @ 08:45:37 End 2025.11.24 @ 10:34:00 Sessions 1 Manual Loads 0 Difficulty Rogue Special Mode None Game No. 323 Rogue 323 Adventurer 0 Explorer 0 Win Type - Total 7 Types 3/0/2/1/0/0/0/0/0/1 Lore% 87 Gallery% 78 Achievement% 47 Wizard Run 0 Options --------- Layout 2 ASCII 0 Keyboard 1 Movement Vi Keybinds 0 Fullscreen 1 Font 16/SmallcapsGlow Map View 55x47 Zoom Use 0% Tactical HUD 1 Map Filters NONE Filters NONE Steam 0 RUN: 4bdca4aa-741e-40ca-8039-80e153e0c185